fUST/lending_fUST_20240514
["ID","MTS","AMOUNT","RATE_DAILY","PERIOD"]
[326936527,1715620253788,-500.0,0.00055616,120]
[326936528,1715620253797,-536.192902,0.00055616,120]
[326936529,1715620253806,-278.6715963,0.00055616,7]
[326936530,1715620253815,-500.0,0.00055616,120]
[326936531,1715620253825,-500.0,0.00055616,120]
[326936532,1715620253834,-1833.64,0.00055616,120]
[326936533,1715620253843,-500.0,0.00055616,120]
[326936534,1715620253852,-1000.0,0.00055616,120]
[326936535,1715620253860,-500.0,0.00055616,120]
[326936536,1715620253869,-673.29,0.00055616,120]
[326936537,1715620253878,-1891.43,0.00055616,120]
[326936538,1715620253887,-580.96613302,0.00055616,120]
[326936539,1715620253896,-5977.47,0.00055616,120]
[326936540,1715620253905,-779.24,0.00055616,120]
[326936541,1715620253914,-500.0,0.00055616,120]
[326936542,1715620253923,-500.0,0.00055616,120]
[326936543,1715620253932,-629.41420693,0.00055616,120]
[326936544,1715620253941,-3679.56,0.00055616,120]
[326936545,1715620253950,-811.32,0.00055616,120]
[326936546,1715620253960,-500.0,0.00055616,120]
[326936547,1715620253969,-605.15544031,0.00055616,120]
[326936548,1715620253979,-796.56,0.00055616,120]
[326936549,1715620253988,-1232.69,0.00055616,120]
[326936550,1715620253998,-1479.77,0.00055616,120]
[326936551,1715620254007,-500.0,0.00055616,120]
[326936552,1715620254016,-500.0,0.00055616,120]
[326936553,1715620254025,-500.0,0.00055616,120]
[326936554,1715620254034,-500.0,0.00055616,120]
[326936555,1715620254044,-500.0,0.00055616,120]
[326936556,1715620254053,-12589.51,0.00055616,120]
[326936557,1715620254062,-1000.0,0.00055616,4]
[326936558,1715620254071,-500.0,0.00055616,120]
[326936559,1715620254080,-500.0,0.00055616,120]
[326936560,1715620254089,-1412.14,0.0005589,120]
[326936561,1715620254098,-500.0,0.0005589,120]
[326936562,1715620254108,-599.01,0.0005589,120]
[326936563,1715620254117,-599.03,0.0005589,120]
[326936564,1715620254126,-500.0,0.0005589,120]
[326936565,1715620254136,-500.0,0.0005589,120]
[326936566,1715620254145,-500.0,0.0005589,120]
[326936567,1715620254154,-500.0,0.0005589,120]
[326936568,1715620254163,-500.0,0.0005589,2]
[326936569,1715620254172,-1015.19,0.0005589,4]
[326936570,1715620254181,-500.0,0.0005589,120]
[326936571,1715620254190,-500.0,0.0005589,120]
[326936572,1715620254199,-649.51,0.0005589,120]
[326936573,1715620254208,-500.0,0.0005589,120]
[326936574,1715620254217,-500.0,0.0005589,30]
[326936575,1715620254228,-500.0,0.0005589,2]
[326936576,1715620254237,-500.0,0.0005589,120]
[326936577,1715620254246,-500.0,0.0005589,120]
[326936578,1715620254257,-536.93,0.0005589,120]
[326936579,1715620254267,-500.0,0.0005589,2]
[326936580,1715620254277,-714.05,0.0005589,120]
[326936581,1715620254286,-498.61953683,0.0005589,120]
[326936582,1715620254296,-500.0,0.0005589,120]
[326936583,1715620254306,-500.0,0.0005589,120]
[326936584,1715620254315,-500.0,0.0005589,120]
[326936585,1715620254324,-500.0,0.0005589,120]
[326936586,1715620254333,-842.83,0.0005589,120]
[326936587,1715620254342,-492.62795753,0.0005589,120]
[326936588,1715620254352,-500.0,0.0005589,120]
[326936589,1715620254362,-500.0,0.0005589,120]
[326936590,1715620254371,-537.34,0.0005589,120]
[326936591,1715620254381,-2711.29,0.0005589,120]
[326936592,1715620254390,-252.1873984,0.0005589,120]
[326936593,1715620254400,-500.0,0.0005589,120]
[326936594,1715620254409,-500.0,0.0005589,120]
[326936595,1715620254425,-2100.98,0.0005589,120]
[326936596,1715620254434,-500.0,0.0005589,120]
[326936597,1715620254444,-663.9,0.0005589,120]
[326936598,1715620254454,-500.0,0.0005589,120]
[326936599,1715620254464,-500.0,0.0005589,120]
[326936600,1715620254474,-500.0,0.0005589,120]
[326936601,1715620254486,-500.0,0.0005589,120]
[326936602,1715620254495,-1000.0,0.0005589,120]
[326936603,1715620254506,-1197.91,0.0005589,2]
[326936604,1715620254515,-712.92,0.0005589,120]
[326936605,1715620254524,-500.0,0.0005589,120]
[326936606,1715620254534,-3267.79,0.0005589,2]
[326936607,1715620254543,-500.0,0.0005589,120]
[326936608,1715620254552,-500.0,0.0005589,120]
[326936609,1715620254562,-151.0,0.0005589,120]
[326936610,1715620254571,-573.24,0.0005589,120]
[326936611,1715620254580,-360.40456531,0.0005589,120]
[326936612,1715620254589,-621.0,0.0005589,120]
[326936613,1715620254600,-644.76,0.0005589,120]
[326936614,1715620254609,-500.0,0.0005589,120]
[326936615,1715620254618,-593.33,0.0005589,120]
[326936616,1715620254628,-500.0,0.0005589,120]
[326936617,1715620254637,-671.99,0.0005589,120]
[326936618,1715620254647,-500.0,0.0005589,120]
[326936619,1715620254656,-43.81215485,0.0005589,120]
[326936620,1715620270026,1000.0,0.00023,30]
[326936622,1715620394344,273.37336231,9.9e-05,2]
[326936623,1715620402535,273.37336231,9.9e-05,2]
[326936625,1715620411775,273.37336231,9.9e-05,2]
[326936626,1715620419769,273.37336231,9.9e-05,2]
[326936627,1715620428038,273.37336231,9.9e-05,2]
[326936628,1715620430517,1000.0,0.0002,10]
[326936629,1715620436650,273.37336231,9.9e-05,2]
[326936631,1715620442577,1000.0,0.00025,60]
[326936632,1715620446060,273.37336231,9.9e-05,2]
[326936633,1715620454755,273.37336231,9.9e-05,2]
[326936636,1715620463529,273.37336231,9.9e-05,2]
[326936637,1715620471566,273.37336231,9.9e-05,2]
[326936638,1715620480439,273.37336231,9.9e-05,2]
[326936639,1715620488618,273.37336231,9.9e-05,2]
[326936640,1715620496835,273.37336231,9.9e-05,2]
[326936642,1715620504879,273.37336231,9.9e-05,2]
[326936643,1715620513194,273.37336231,9.9e-05,2]
[326936644,1715620521736,273.37336231,9.9e-05,2]
[326936645,1715620530076,273.37336231,9.9e-05,2]
[326936646,1715620538254,273.37336231,9.9e-05,2]
[326936647,1715620546403,273.37336231,9.9e-05,2]
[326936648,1715620555017,273.37336231,9.9e-05,2]
[326936649,1715620563440,273.37336231,9.9e-05,2]
[326936650,1715620571437,273.37336231,9.9e-05,2]
[326936651,1715620579687,273.37336231,9.9e-05,2]
[326936653,1715620587828,273.37336231,9.9e-05,2]
[326936654,1715620597358,273.37336231,9.9e-05,2]
[326936655,1715620601007,211.56642884,0.00019444,30]
[326936656,1715620605862,273.37336231,9.9e-05,2]
[326936661,1715620614245,273.37336231,9.9e-05,2]
[326936662,1715620622235,273.37336231,9.9e-05,2]
[326936667,1715620630557,273.37336231,9.9e-05,2]
[326936668,1715620632748,613.0,0.00025,60]
[326936672,1715620638726,273.37336231,9.9e-05,2]
[326936675,1715620647538,273.37336231,9.9e-05,2]
[326936676,1715620655653,273.37336231,9.9e-05,2]
[326936678,1715620663967,273.37336231,9.9e-05,2]
[326936680,1715620672022,273.37336231,9.9e-05,2]
[326936683,1715620680879,273.37336231,9.9e-05,2]
[326936684,1715620688986,273.37336231,9.9e-05,2]
[326936685,1715620697380,273.37336231,9.9e-05,2]
[326936687,1715620707015,273.37336231,9.9e-05,2]
[326936689,1715620716378,273.37336231,9.9e-05,2]
[326936690,1715620719151,154.90705577,0.00025,60]
[326936691,1715620724665,273.37336231,9.9e-05,2]
[326936692,1715620732958,273.37336231,9.9e-05,2]
[326936693,1715620741535,273.37336231,9.9e-05,2]
[326936694,1715620750377,273.37336231,9.9e-05,2]
[326936695,1715620758423,273.37336231,9.9e-05,2]
[326936696,1715620767354,273.37336231,9.9e-05,2]
[326936697,1715620776125,273.37336231,9.9e-05,2]
[326936698,1715620785487,273.37336231,9.9e-05,2]
[326936699,1715620793488,273.37336231,9.9e-05,2]
[326936700,1715620801882,273.37336231,9.9e-05,2]
[326936701,1715620810059,273.37336231,9.9e-05,2]
[326936702,1715620818362,273.37336231,9.9e-05,2]
[326936703,1715620826445,273.37336231,9.9e-05,2]
[326936704,1715620834746,273.37336231,9.9e-05,2]
[326936705,1715620843344,273.37336231,9.9e-05,2]
[326936706,1715620852236,273.37336231,9.9e-05,2]
[326936708,1715620860786,273.37336231,9.9e-05,2]
[326936709,1715620869706,273.37336231,9.9e-05,2]
[326936710,1715620877692,273.37336231,9.9e-05,2]
[326936711,1715620886629,273.37336231,9.9e-05,2]
[326936712,1715620894867,273.37336231,9.9e-05,2]
[326936713,1715620903144,273.37336231,9.9e-05,2]
[326936714,1715620911209,273.37336231,9.9e-05,2]
[326936715,1715620919983,273.37336231,9.9e-05,2]
[326936716,1715620928013,273.37336231,9.9e-05,2]
[326936717,1715620936836,273.37336231,9.9e-05,2]
[326936719,1715620944975,273.37336231,9.9e-05,2]
[326936720,1715620953157,273.37336231,9.9e-05,2]
[326936722,1715620962542,273.37336231,9.9e-05,2]
[326936723,1715620970820,273.37336231,9.9e-05,2]
[326936724,1715620978898,273.37336231,9.9e-05,2]
[326936727,1715620987472,273.37336231,9.9e-05,2]
[326936728,1715620996068,273.37336231,9.9e-05,2]
[326936729,1715621004980,273.37336231,9.9e-05,2]
[326936730,1715621013076,273.37336231,9.9e-05,2]
[326936731,1715621019099,154.90705577,0.00025,60]
[326936732,1715621022438,273.37336231,9.9e-05,2]
[326936734,1715621030972,273.37336231,9.9e-05,2]
[326936735,1715621039482,273.37336231,9.9e-05,2]
[326936741,1715621047770,273.37336231,9.9e-05,2]
[326936742,1715621051757,154.78330338,9.999e-05,2]
[326936743,1715621056073,273.37336231,9.9e-05,2]
[326936744,1715621064134,273.37336231,9.9e-05,2]
[326936745,1715621073532,273.37336231,9.9e-05,2]
[326936746,1715621081565,273.37336231,9.9e-05,2]
[326936747,1715621089970,273.37336231,9.9e-05,2]
[326936748,1715621098485,273.37336231,9.9e-05,2]
[326936749,1715621107938,273.37336231,9.9e-05,2]
[326936751,1715621116009,273.37336231,9.9e-05,2]
[326936752,1715621124355,273.37336231,9.9e-05,2]
[326936753,1715621132370,273.37336231,9.9e-05,2]
[326936754,1715621141178,273.37336231,9.9e-05,2]
[326936755,1715621149797,273.37336231,9.9e-05,2]
[326936756,1715621158532,273.37336231,9.9e-05,2]
[326936757,1715621166553,273.37336231,9.9e-05,2]
[326936758,1715621175511,273.37336231,9.9e-05,2]
[326936759,1715621183605,273.37336231,9.9e-05,2]
[326936760,1715621192960,273.37336231,9.9e-05,2]
[326936761,1715621201148,252.79318148,9.9e-05,2]
[326936816,1715621432983,-180.38887654,0.00018328,2]
[326936817,1715621432993,-10501.84776686,0.00018415,2]
[326936818,1715621433003,-2594.90254816,0.00018416,2]
[326936819,1715621433012,-15705.76411353,0.00018417,2]
[326936820,1715621433022,-689.55985205,0.00018419,2]
[326936821,1715621433032,-700.50410475,0.00018421,2]
[326936822,1715621433041,-59346.92978658,0.00018424,2]
[326936823,1715621433051,-262.96419146,0.00018428,2]
[326936824,1715621433060,-280.53689219,0.00018433,2]
[326936825,1715621433070,-16396.0593134,0.00018439,2]
[326936826,1715621433079,-363.07800446,0.000189,2]
[326936827,1715621433089,-251.89977688,0.00019178,2]
[326936828,1715621433099,-500.0,0.00019178,2]
[326936829,1715621433108,-192.8018309,0.00019178,2]
[326936830,1715621433118,-247.86974193,0.00019178,2]
[326936831,1715621433128,-500.0,0.00019178,2]
[326936832,1715621433138,-533.04951089,0.00019178,2]
[326936833,1715621433147,-1711.57643961,0.00019332,2]
[326936834,1715621433157,-372.31624743,0.00019432,2]
[326936835,1715621433166,-9390.44266503,0.00019434,2]
[326936836,1715621433176,-3154.8140198,0.00019437,2]
[326936837,1715621433185,-392.43381706,0.0001944,2]
[326936884,1715621438225,-28.66232761,0.0001944,2]
[326936885,1715621438235,-237.03580854,0.00019442,2]
[326936886,1715621438245,-113.06190287,0.00019445,2]
[326937107,1715621442456,-10074.7387455,0.00019445,2]
[326937109,1715621442470,-475.33763004,0.00019998,2]
[326937111,1715621442482,-4306.36101883,0.0002,2]
[326937191,1715621443214,-392.1959995,0.0002,2]
[326937196,1715621443229,-2408.71144954,0.0002,2]
[326937199,1715621443242,-180.97131189,0.00020905,2]
[326937202,1715621443254,-291.14020735,0.00020906,2]
[326937204,1715621443268,-113.67899885,0.00020906,2]
[326937206,1715621443282,-302.83901026,0.00020906,2]
[326937479,1715621446073,-487.25,0.00020906,2]
[326937482,1715621446088,-712.0,0.00020906,2]
[326938007,1715622127035,-242.05200298,0.000189,2]
[326938008,1715622127060,-8464.94799702,0.0001909,2]
[326938061,1715622632784,-180.0,0.0001888,2]
[326938063,1715622632794,-180.38887653,0.00018881,2]
[326938065,1715622632803,-1497.62938465,0.00018884,2]
[326938067,1715622632812,-161.36800198,0.000189,2]
[326938069,1715622632821,-10501.84776686,0.00018978,2]
[326938071,1715622632830,-94152.29713987,0.00018978,2]
[326938073,1715622632842,-1110.81206292,0.00018978,2]
[326938149,1715622638363,-658.93879695,0.00018978,2]
[326938209,1715622640457,-8312.70597698,0.00018978,2]
[326938211,1715622640467,-3481.38307975,0.00018979,2]
[326938213,1715622640478,-2112.09424767,0.00018979,2]
[326938216,1715622640490,-10112.28678611,0.00018979,2]
[326938218,1715622640500,-689.55985205,0.00019089,2]
[326938220,1715622640510,-500.88341463,0.00019178,2]
[326938222,1715622640520,-442.73550467,0.00019178,2]
[326938224,1715622640531,-190.028434,0.00019178,2]
[326938225,1715622640540,-7107.26846787,0.0002,2]
[326938227,1715622640550,-833.60436794,0.00020814,2]
[326938230,1715622640560,-114.43260102,0.00020906,2]
[326938232,1715622640569,-1044.35432068,0.00020909,2]
[326938233,1715622640578,-9504.98296993,0.00020911,2]
[326938240,1715622640635,-272.01885997,0.00018307,2]
[326938243,1715622640648,-358.03685496,0.00018307,2]
[326938245,1715622640664,-24249.94428507,0.00018307,2]
[326938247,1715622640674,-7960.67499961,0.00020911,2]
[326938250,1715622640683,-165.945859,0.00023562,2]
[326938253,1715622640693,-160.002208,0.00023562,2]
[326938256,1715622640702,-160.877038,0.00023562,2]
[326938259,1715622640712,-161.36800198,0.000239,2]
[326938262,1715622640721,-217.56041448,0.00025,2]
[326938264,1715622640731,-1000.0,0.000263,2]
[326938266,1715622640740,-569.23384257,0.0002739,10]
[326938268,1715622640749,-235.8663777,0.00028219,2]
[326938270,1715622640759,-117.98906619,0.000289,2]
[326938486,1715622643529,-43.37893579,0.000289,2]
[326938487,1715622643541,-436.62106421,0.00034899,15]
[326938506,1715622646386,-10501.84776686,0.00020913,2]
[326938507,1715622646398,-18893.700511,0.00034899,15]
[326938508,1715622646409,-24501.60623855,0.000349,7]
[326938509,1715622646419,-165.945859,0.00034904,2]
[326938510,1715622646430,-5703.24,0.00035616,3]
[326938511,1715622646441,-4752.7,0.00035616,3]
[326938512,1715622646452,-160.002208,0.00036164,2]
[326938513,1715622646463,-4676.67951295,0.000365,20]
[326938514,1715622646475,-641.38105616,0.00038356,15]
[326938515,1715622646486,-3584.7342,0.0003967,30]
[326938516,1715622646498,-1688.8031208,0.0004,4]
[326938517,1715622646509,-1897.96554279,0.0004,4]
[326938518,1715622646522,-3960.58,0.00041856,3]
[326938519,1715622646536,-3696.61179912,0.00041866,3]
[326938520,1715622646548,-431.51901652,0.000419,39]
[326938521,1715622646560,-54976.1901975,0.0004331,120]
[326938522,1715622646572,-152.43911519,0.0004331,30]
[326938523,1715622646582,-3000.0,0.0004331,2]
[326938524,1715622646593,-165.945859,0.00046247,2]
[326938525,1715622646603,-150.78889555,0.00047904,2]
[326938526,1715622646612,-3239.49936,0.00048,60]
[326938527,1715622646622,-301.57779109,0.00048709,4]
[326938528,1715622646633,-160.002208,0.00048767,2]
[326938529,1715622646645,-1000.0,0.00052948,30]
[326938530,1715622646657,-5000.0,0.00053417,5]
[326938531,1715622646669,-55555.0,0.0005366,5]
[326938532,1715622646681,-50.47116718,0.0005376,10]
[326938533,1715622646694,-2949.52883282,0.0005376,10]
[326938534,1715622646705,-3000.0,0.0005376,10]
[326938535,1715622646718,-3000.0,0.0005376,10]
[326938536,1715622646730,-3023.6898067,0.0005376,10]
[326938537,1715622646741,-531.27,0.00054794,120]
[326938538,1715622646752,-500.0,0.00054794,120]
[326938539,1715622646762,-500.0,0.00054794,120]
[326938540,1715622646772,-504.84971857,0.00054794,120]
[326938541,1715622646785,-503.84084212,0.00054794,120]
[326938542,1715622646795,-509.97072226,0.00054794,120]
[326938543,1715622646806,-517.99924388,0.00054794,120]
[326938544,1715622646816,-500.0,0.00054794,120]
[326938545,1715622646827,-500.0,0.00054794,120]
[326938546,1715622646837,-500.0,0.00054794,120]
[326938547,1715622646847,-559.79397991,0.00054794,120]
[326938548,1715622646857,-500.0,0.00054794,120]
[326938549,1715622646867,-500.0,0.00054794,120]
[326938550,1715622646878,-500.0,0.00054794,120]
[326938551,1715622646888,-500.0,0.00054794,120]
[326938552,1715622646898,-500.0,0.00054794,120]
[326938553,1715622646908,-500.0,0.00054794,120]
[326938554,1715622646918,-500.0,0.00054794,120]
[326938555,1715622646929,-500.0,0.00054794,7]
[326938556,1715622646939,-500.0,0.00054794,120]
[326938557,1715622646949,-500.0,0.00054794,120]
[326938558,1715622646959,-500.0,0.00054794,120]
[326938559,1715622646970,-500.0,0.00054794,120]
[326938560,1715622646980,-500.0,0.00054794,120]
[326938561,1715622646990,-500.0,0.00054794,120]
[326938562,1715622647000,-646.47838496,0.00054794,120]
[326938563,1715622647010,-1000.0,0.00054794,120]
[326938564,1715622647021,-500.0,0.00054794,120]
[326938565,1715622647033,-507.56374048,0.00054794,120]
[326938566,1715622647043,-500.0,0.00054794,120]
[326938567,1715622647054,-500.0,0.00054794,120]
[326938568,1715622647064,-500.0,0.00054794,120]
[326938569,1715622647074,-553.296526,0.00054794,120]
[326938570,1715622647084,-500.0,0.00054794,120]
[326938571,1715622647095,-500.0,0.00054794,120]
[326938572,1715622647105,-500.0,0.00054794,120]
[326938573,1715622647116,-500.0,0.00054794,120]
[326938574,1715622647132,-500.0,0.00054794,120]
[326938575,1715622647142,-501.69878293,0.00054794,120]
[326938576,1715622647152,-500.0,0.00054794,120]
[326938577,1715622647164,-500.0,0.00054794,120]
[326938578,1715622647174,-500.0,0.00054794,120]
[326938579,1715622647184,-500.55736945,0.00054794,120]
[326938580,1715622647195,-500.0,0.00054794,120]
[326938581,1715622647208,-598.0,0.00054794,120]
[326938582,1715622647219,-500.0,0.00054794,120]
[326938583,1715622647230,-500.0,0.00054794,120]
[326938584,1715622647352,-369.84738659,0.00054794,2]
[326938585,1715622647364,-500.0,0.00054794,120]
[326938586,1715622647373,-500.0,0.00054794,120]
[326938587,1715622647383,-500.0,0.00054794,120]
[326938588,1715622647392,-500.0,0.00054794,120]
[326938589,1715622647401,-500.0,0.00054794,120]
[326938590,1715622647410,-500.0,0.00054794,120]
[326938591,1715622647419,-500.0,0.00054794,120]
[326938592,1715622647431,-613.15048052,0.00054794,120]
[326938593,1715622647440,-500.0,0.00054794,120]
[326938594,1715622647450,-500.0,0.00054794,120]
[326938595,1715622647460,-520.62,0.00054794,120]
[326938596,1715622647470,-500.0,0.00054794,120]
[326938597,1715622647480,-501.47487146,0.00054794,120]
[326938598,1715622647490,-578.13181058,0.00054794,120]
[326938599,1715622647500,-500.0,0.00054794,120]
[326938600,1715622647511,-500.0,0.00054794,120]
[326938601,1715622647523,-500.0,0.00054794,120]
[326938602,1715622647533,-500.0,0.00054794,120]
[326938603,1715622647545,-502.38947976,0.00054794,120]
[326938604,1715622647554,-500.0,0.00054794,120]
[326938605,1715622647563,-500.0,0.00054794,120]
[326938606,1715622647572,-667.24,0.00054794,120]
[326938607,1715622647581,-504.28777762,0.00054794,120]
[326938608,1715622647590,-500.0,0.00054794,120]
[326938609,1715622647599,-500.67134089,0.00054794,120]
[326938610,1715622647608,-500.0,0.00054794,120]
[326938611,1715622647617,-505.29092079,0.00054794,120]
[326938612,1715622647626,-803.69,0.00054794,4]
[326938613,1715622647635,-2146.43,0.00054794,120]
[326938614,1715622647644,-500.0,0.00054794,120]
[326938615,1715622647653,-500.0,0.00054794,120]
[326938616,1715622647662,-1663.28,0.00054794,120]
[326938617,1715622647672,-500.0,0.00054794,120]
[326938618,1715622647681,-500.0,0.00054794,120]
[326938619,1715622647691,-500.0,0.00054794,120]
[326938620,1715622647700,-500.0,0.00054794,120]
[326938621,1715622647709,-500.0,0.00054794,120]
[326938622,1715622647718,-500.0,0.00054794,120]
[326938623,1715622647727,-500.0,0.00054794,120]
[326938624,1715622647736,-525.58,0.00054794,120]
[326938625,1715622647746,-500.0,0.00054794,120]
[326938626,1715622647755,-500.0,0.00054794,120]
[326938627,1715622647766,-509.91,0.00054794,120]
[326938628,1715622647775,-500.0,0.00054794,120]
[326938629,1715622647787,-501.74004636,0.00054794,120]
[326938630,1715622647795,-500.0,0.00054794,2]
[326938631,1715622647804,-500.0,0.00054794,30]
[326938632,1715622647813,-500.0,0.00054794,120]
[326938633,1715622647823,-500.99334002,0.00054794,120]
[326938634,1715622647831,-500.0,0.00054794,120]
[326938635,1715622647841,-500.0,0.00054794,120]
[326938636,1715622647851,-500.0,0.00054794,120]
[326938637,1715622647860,-500.0,0.00054794,120]
[326938638,1715622647869,-2739.99,0.00054794,2]
[326938639,1715622647879,-500.0,0.00054794,120]
[326938640,1715622647889,-500.0,0.00054794,120]
[326938641,1715622647900,-500.0,0.00054794,120]
[326938642,1715622647909,-500.0,0.00054794,120]
[326938643,1715622647919,-575.34,0.00054794,120]
[326938644,1715622647928,-500.0,0.00054794,120]
[326938645,1715622647937,-500.0,0.00054794,120]
[326938646,1715622647947,-500.0,0.00054794,120]
[326938647,1715622647958,-151.0,0.00054794,7]
[326938648,1715622647967,-500.0,0.00054794,120]
[326938649,1715622647977,-500.0,0.00054794,2]
[326938650,1715622647986,-151.0,0.00054794,7]
[326938651,1715622647996,-500.0,0.00054794,120]
[326938652,1715622648006,-394.91097347,0.00054794,120]
[326938653,1715622648015,-151.0,0.00054794,7]
[326938654,1715622648025,-500.0,0.00054794,120]
[326938655,1715622648034,-500.0,0.00054794,120]
[326938656,1715622648043,-600.41768581,0.00054794,120]
[326938657,1715622648052,-500.0,0.00054794,120]
[326938658,1715622648062,-572.41020535,0.00054794,120]
[326938659,1715622648071,-156.59995282,0.00054794,120]
[326938660,1715622648080,-500.0,0.00054794,120]
[326938661,1715622648089,-500.0,0.00054794,120]
[326938662,1715622648098,-500.0,0.00054794,120]
[326938663,1715622648107,-500.0,0.00054794,120]
[326938664,1715622648117,-500.0,0.00054794,120]
[326938665,1715622648131,-151.0,0.00054794,7]
[326938666,1715622648140,-151.0,0.00054794,7]
[326938667,1715622648149,-500.0,0.00054794,120]
[326938668,1715622648159,-500.0,0.00054794,120]
[326938669,1715622648168,-501.81115332,0.00054794,120]
[326938670,1715622648178,-500.0,0.00054794,120]
[326938671,1715622648187,-500.0,0.00054794,120]
[326938672,1715622648196,-500.0,0.00054794,120]
[326938673,1715622648209,-500.0,0.00054794,120]
[326938674,1715622648218,-500.0,0.00054794,120]
[326938675,1715622648227,-517.57,0.00054794,120]
[326938676,1715622648236,-502.55567626,0.00054794,120]
[326938677,1715622648247,-586.98,0.00054794,120]
[326938678,1715622648257,-507.36346321,0.00054794,120]
[326938679,1715622648267,-500.0,0.00054794,120]
[326938680,1715622648276,-500.0,0.00054794,120]
[326938681,1715622648287,-394.60111199,0.00054794,120]
[326938682,1715622648296,-500.0,0.00054794,120]
[326938683,1715622648305,-500.0,0.00054794,120]
[326938684,1715622648314,-500.0,0.00054794,120]
[326938685,1715622648322,-502.65005093,0.00054794,120]
[326938686,1715622648331,-500.91891574,0.00054794,120]
[326938687,1715622648340,-500.0,0.00054794,120]
[326938688,1715622648349,-516.28311361,0.00054794,120]
[326938689,1715622648358,-402.02725737,0.00054794,120]
[326938690,1715622648367,-500.0,0.00054794,120]
[326938691,1715622648375,-506.11432404,0.00054794,120]
[326938692,1715622648384,-500.0,0.00054794,120]
[326938693,1715622648393,-500.0,0.00054794,120]
[326938694,1715622648402,-500.0,0.00054794,120]
[326938695,1715622648412,-300.0,0.00054794,7]
[326938696,1715622648422,-500.0,0.00054794,120]
[326938697,1715622648430,-502.21153053,0.00054794,120]
[326938698,1715622648439,-500.0,0.00054794,120]
[326938699,1715622648448,-500.0,0.00054794,120]
[326938700,1715622648457,-500.0,0.00054794,120]
[326938701,1715622648466,-151.0,0.00054794,7]
[326938702,1715622648475,-255.40879029,0.00054794,120]
[326938703,1715622648484,-580.61,0.00054794,120]
[326938704,1715622648494,-637.21,0.00054794,21]
[326938705,1715622648504,-151.0,0.00054794,7]
[326938706,1715622648515,-500.0,0.00054794,120]
[326938707,1715622648525,-500.0,0.00054794,120]
[326938708,1715622648535,-500.0,0.00054794,120]
[326938709,1715622648544,-500.0,0.00054794,120]
[326938710,1715622648554,-948.35,0.00054794,2]
[326938711,1715622648564,-503.36462699,0.00054794,120]
[326938712,1715622648573,-646.74478274,0.00054794,120]
[326938713,1715622648583,-500.0,0.00054794,120]
[326938714,1715622648592,-501.10113702,0.00054794,7]
[326938715,1715622648601,-506.61282163,0.00054794,120]
[326938716,1715622648611,-394.13758263,0.00054794,120]
[326938717,1715622648620,-500.0,0.00054794,120]
[326938718,1715622648629,-502.4971631,0.00054794,120]
[326938719,1715622648639,-500.0,0.00054794,120]
[326938720,1715622648649,-1528.03,0.00054794,120]
[326938721,1715622648658,-585.26,0.00054794,120]
[326938722,1715622648667,-500.0,0.00054794,120]
[326938723,1715622648676,-649.37,0.00054794,120]
[326938724,1715622648686,-1000.0,0.00054794,120]
[326938725,1715622648695,-561.08,0.00054794,120]
[326938726,1715622648704,-500.0,0.00054794,120]
[326938727,1715622648713,-500.0,0.00054794,120]
[326938728,1715622648724,-1764.18,0.00054794,120]
[326938729,1715622648734,-500.0,0.00054794,120]
[326938730,1715622648744,-500.0,0.00054794,120]
[326938731,1715622648753,-502.29505446,0.00054794,120]
[326938732,1715622648763,-518.73052326,0.00054794,120]
[326938733,1715622648774,-500.0,0.00054794,120]
[326938734,1715622648785,-500.0,0.00054794,120]